[Event "WSTCC-65 2024"]
[Site "Krakow"]
[Date "2024.07.04"]
[Round "3.19"]
[White "Lange, Torsten"]
[Black "Karnaukh, Anatolij"]
[Result "0-1"]
[ECO "A28"]
[WhiteElo "2027"]
[BlackElo "1970"]
[Annotator "NA RC"]
[PlyCount "78"]
[EventDate "2024.07.01"]
[EventType "team-tourn"]
[EventCountry "POL"]
[SourceTitle "playchess.com"]
[Source "ChessBase"]
[SourceQuality "1"]
[TimeControl "40/5400+30:1800+30"]

1. c4 {[%emt 0:00:04]} e5 {[%emt 0:00:25]} 2. Nc3 {[%emt 0:00:06]} Nf6 {[%emt 0:00:05]} 3. Nf3 {[%emt 0:00:07]} Nc6 {[%emt 0:00:39]} 4. d4 {[%emt 0:00:11]} exd4 {[%emt 0:02:01]} 5. Nxd4 {[%emt 0:00:08]} Bb4 {[%emt 0:03:02]} 6. Bg5 {[%emt 0:00:14]} h6 {[%emt 0:00:26]} 7. Bh4 {[%emt 0:00:08]} g5 {[%emt 0:00:21]} 8. Bg3 {[%emt 0:00:11]} d6 {[%emt 0:00:09]} 9. Nxc6 {[%emt 0:05:54]} bxc6 {[%emt 0:00:09]} 10. Rc1 {[%emt 0:01:53]} Bf5 {[%emt 0:10:59]} 11. a3 {[%emt 0:10:56]} Bxc3+ {[%emt 0:02:23]} 12. Rxc3 {[%emt 0:00:09]} c5 {[%emt 0:09:09]} 13. f3 {[%emt 0:01:53]} Nh5 {[%emt 0:08:20]} 14. e4 {[%emt 0:05:16]} Nxg3 {[%emt 0:05:36]} 15. hxg3 {[%emt 0:00:12]} Be6 {[%emt 0:07:35]} 16. Be2 {[%emt 0:14:43]} Qf6 {[%emt 0:01:05]} 17. Rb3 {[%emt 0:14:54]} O-O {[%emt 0:13:15]} 18. Rb7 {[%emt 0:06:19]} Rfc8 {[%emt 0:08:07]} 19. Qd2 {[%emt 0:03:01]} Rab8 20. Rxb8 {[%emt 0:11:09]} Rxb8 {[%emt 0:01:15]} 21. b4 {[%emt 0:04:42]} cxb4 {[%emt 0:00:57]} 22. axb4 {[%emt 0:00:18]} a5 {[%emt 0:00:09]} 23. b5 {[%emt 0:03:51]} a4 {[%emt 0:00:49]} 24. O-O {[%emt 0:09:17]} Qe5 {[%emt 0:02:14]} 25. Kh2 {[%emt 0:04:09]} Ra8 {[%emt 0:13:08]} 26. f4 {[%emt 0:00:37]} Qf6 {[%emt 0:00:50]} 27. fxg5 {[%emt 0:01:58]} Qxg5 {[%emt 0:00:13]} 28. Qxg5+ {[%emt 0:00:10]} hxg5 {[%emt 0:00:06]} 29. Ra1 {[%emt 0:00:10]} a3 {[%emt 0:00:08]} 30. Kg1 {[%emt 0:00:50]} Kg7 {[%emt 0:00:17]} 31. Kf2 {[%emt 0:00:15]} Kf6 {[%emt 0:00:10]} 32. Ke3 {[%emt 0:00:51]} Ke5 {[%emt 0:00:10]} 33. Kd3 {[%emt 0:00:57]} a2 {[%emt 0:02:20]} 34. Kc3 {[%emt 0:00:36]} g4 {[%emt 0:01:30]} 35. Kb3 {[%emt 0:00:35]} Kxe4 {[%emt 0:00:12]} 36. Rxa2 {[%emt 0:00:40]} Rxa2 {[%emt 0:00:08]} 37. Kxa2 {[%emt 0:00:01]} Ke3 {[%emt 0:00:27]} 38. Bf1 {[%emt 0:00:44]} Bf5 {[%emt 0:02:21]} 39. Kb3 {[%emt 0:00:23]} Kf2 {[%emt 0:00:05]} 0-1

[Event "WSTCC-65 2024"]
[Site "Krakow"]
[Date "2024.07.04"]
[Round "3.19"]
[White "Gorjaltsan, Eduard"]
[Black "Jorgensen, Arne Bjorn"]
[Result "1/2-1/2"]
[ECO "A56"]
[WhiteElo "1884"]
[BlackElo "1940"]
[Annotator "NA RC"]
[PlyCount "34"]
[EventDate "2024.07.01"]
[EventType "team-tourn"]
[EventCountry "POL"]
[SourceTitle "playchess.com"]
[Source "ChessBase"]
[SourceQuality "1"]
[TimeControl "40/5400+30:1800+30"]

1. d4 {[%emt 0:00:04]} Nf6 {[%emt 0:00:06]} 2. c4 {[%emt 0:00:09]} c5 {[%emt 0:00:08]} 3. d5 {[%emt 0:00:20]} e5 {[%emt 0:00:06]} 4. Nc3 {[%emt 0:00:57]} d6 {[%emt 0:00:08]} 5. e4 {[%emt 0:01:06]} Be7 {[%emt 0:00:06]} 6. Bd3 {[%emt 0:00:31]} Nbd7 {[%emt 0:00:14]} 7. Nge2 {[%emt 0:00:23]} Nf8 {[%emt 0:00:13]} 8. O-O {[%emt 0:00:26]} Ng6 {[%emt 0:00:04]} 9. a3 {[%emt 0:01:45]} O-O {[%emt 0:01:57]} 10. b4 {[%emt 0:00:27]} b6 {[%emt 0:00:23]} 11. Rb1 {[%emt 0:04:41]} Bd7 {[%emt 0:01:16]} 12. Ng3 {[%emt 0:00:26]} Rb8 {[%emt 0:06:48]} 13. Nf5 {[%emt 0:00:45]} Re8 {[%emt 0:08:01]} 14. Nxe7+ {[%emt 0:00:23]} Qxe7 {[%emt 0:01:00]} 15. Rb2 {[%emt 0:07:34]} h6 {[%emt 0:02:16]} 16. h3 {[%emt 0:01:19]} Rec8 {[%emt 0:06:01]} 17. Be3 {[%emt 0:03:04]} Re8 {[%emt 0:04:36]} 1/2-1/2

[Event "WSTCC-65 2024"]
[Site "Krakow"]
[Date "2024.07.04"]
[Round "3.20"]
[White "Kalinin, Alexander"]
[Black "Thoele, Wolfgang"]
[Result "1/2-1/2"]
[ECO "D00"]
[WhiteElo "2459"]
[BlackElo "1890"]
[Annotator "TA"]
[PlyCount "115"]
[EventDate "2024.07.01"]
[EventType "team-tourn"]
[EventCountry "POL"]
[SourceTitle "playchess.com"]
[Source "ChessBase"]
[SourceQuality "1"]
[TimeControl "40/5400+30:1800+30"]

{[%evp 9,115,-6,0,-1,0,-8,0,-10,-6,-19,-13,-11,-4,-7,-2,-20,-6,-9,-2,-8,-7,0,9,4,18,2,10,0,0,0,0,0,29,27,33,33,85,66,88,51,122,116,106,62,58,40,40,40,40,40,40,40,40,40,40,23,23,23,23,23,23,23,23,23,23,23,23,18,71,71,177,130,400,256,577,597,486,616,604,503,1009,916,780,306,289,258,293,244,240,147,158,210,189,170,189,128,170,163,140,81,82,54,81,37,37,0,37,0]} 1. d4 d5 2. Bf4 {[%emt 0:01:17]} Nf6 {[%emt 0:00:55]} 3. Nc3 {[%emt 0:01:20]} e6 {[%emt 0:01:49]} 4. a3 {[%emt 0:00:24]} Bd6 {[%emt 0:00:28]} 5. Bxd6 {[%emt 0:01:17]} Qxd6 {[%emt 0:00:08]} 6. e3 {[%emt 0:00:44]} a6 {[%emt 0:01:56]} 7. Nf3 {[%emt 0:01:33][%cal Og2g4]} Nc6 {[%emt 0:00:19]} 8. Bd3 {[%emt 0:01:24] The position is equal.} O-O {[%emt 0:00:31]} 9. O-O {[%emt 0:00:26]} e5 {[%emt 0:04:46]} 10. dxe5 {[%emt 0:02:01]} Nxe5 {[%emt 0:00:14]} 11. Nxe5 {[%emt 0:00:32]} Qxe5 {[%emt 0:00:10]} 12. h3 {[%emt 0:00:46]} Bf5 {[%emt 0:02:11]} 13. Bxf5 {[%emt 0:00:28]} Qxf5 {[%emt 0:00:10]} 14. Qd3 {[%emt 0:00:11]} Qxd3 {[%emt 0:00:46]} 15. cxd3 {[%emt 0:00:14]} c6 {[%emt 0:00:06]} 16. d4 {[%emt 0:02:10]} Rfe8 {[%emt 0:00:33]} 17. Rfc1 {[%emt 0:00:37]} Ne4 {[%emt 0:00:30]} 18. Nxe4 {[%emt 0:00:30]} Rxe4 $11 {[%emt 0:00:15][%mdl 4096] Endgame. KRR-KRR} 19. Rc3 {[%emt 0:01:17]} Rae8 {[%emt 0:03:02]} 20. g3 R4e6 {[%emt 0:00:34]} 21. b4 {[%emt 0:03:37]} f5 {[%emt 0:04:18]} 22. h4 {[%emt 0:01:03][%cal Bh3h4,Bh4h5][%mdl 32]} Re4 {[%emt 0:08:25]} (22... h6 $14) 23. Kg2 {[%emt 0:00:42]} h6 {[%emt 0:00:30]} 24. a4 {[%emt 0:00:30][%cal Ob4b5]} R4e6 {[%emt 0:28:16]} (24... g5 $14) 25. h5 $16 {[%emt 0:01:07]} Kf7 {[%emt 0:00:30]} 26. Rac1 {[%emt 0:00:30]} Kf6 {[%emt 0:01:31]} 27. Kf3 {[%cal Ob4b5]} Kg5 {[%emt 0:00:30]} 28. Rh1 {[%emt 0:08:13]} Rd6 {[%emt 0:03:42] [#]} 29. b5 $1 {[%emt 0:04:07]} axb5 {[%emt 0:00:28]} 30. axb5 {[%emt 0:00:10]} Re7 {[%emt 0:02:56]} 31. Ke2 {[%emt 0:01:42]} Ree6 {[%emt 0:10:30]} 32. b6 {[%emt 0:00:40]} Rd8 {[%emt 0:00:48]} 33. Ra3 {[%emt 0:00:17] Inhibits Ra8.} Re7 {[%emt 0:01:00]} 34. Ra5 {[%emt 0:03:14]} Ree8 {[%emt 0:02:58]} 35. Ra7 {[%emt 0:00:22]} Rd7 {[%emt 0:01:26]} 36. Kd3 {[%emt 0:06:45]} Rde7 {[%emt 0:01:05]} 37. Kc3 {[%emt 0:01:41]} Rd7 {[%emt 0:04:49]} 38. Kb4 {[%emt 0:02:40]} Re4 {[%emt 0:03:05] [#]} (38... Kg4 $11 {remains equal.}) 39. Ra8 $1 {Rf8 would now be deadly.} Kf6 (39... Ree7 $16) 40. Kc5 {[%emt 0:07:41]} (40. Rf8+ $18 Kg5 41. Kc5) 40... Ke7 $2 {[%emt 0:01:49][%mdl 8192]} (40... Ree7 $16) 41. Rb8 {[%emt 0:33:43] Ra1 is the strong threat.} Kf7 $2 {[%emt 0:31:20] [#]} (41... Kf6 42. Rf8+ Ke7 43. Rxf5 Rd8) 42. Ra1 $1 $18 {[%emt 0:01:03]} Re8 {[%emt 0:00:17] Wards off Ra7} 43. Raa8 Rxb8 44. Rxb8 {[%emt 0:01:52] KR-KR} Ke7 {[%emt 0:00:52]} (44... Kf6 $142 45. Rh8 Kf7) 45. Rc8 {[%emt 0:07:53]} Kf7 {[%emt 0:03:03]} 46. Kb4 $2 {[%emt 0:03:08]} (46. Rxc6 {Black must now prevent Rc7.} bxc6 47. Kxc6) 46... Ke7 {[%emt 0:00:31]} 47. Rg8 {[%emt 0:00:54]} ({Weaker is} 47. Kc5 Kf6 48. Rc7 Ke6 $18) 47... Kf7 {[%emt 0:00:10]} 48. Rb8 {[%emt 0:00:39] Threatens to win with Rh8.} Ke7 {[%emt 0:00:34]} 49. Kc3 {[%emt 0:00:19]} Kd6 {[%emt 0:00:44]} 50. Rc8 {[%emt 0:00:41]} Ke7 {[%emt 0:00:26]} 51. Rg8 Kf7 52. Ra8 Ke7 53. Kd3 {[%emt 0:03:54]} Kd6 {[%emt 0:01:15]} 54. Ra5 {[%emt 0:00:30] White is more active.} ({Better is} 54. Rf8) 54... Rd8 {[%emt 0:00:35]} 55. Ke2 {[%emt 0:00:47]} Rc8 {[%emt 0:00:11]} 56. Ra7 {[%emt 0:06:55]} Rb8 {[%emt 0:00:17]} 57. Ra5 {[%emt 0:04:47]} Rc8 {[%emt 0:00:56]} 58. Ra7 {Weighted Error Value: White=0.22 (precise) /Black=0.26 (precise) .  Loses game:     	---       	Black=1      Mistake:       	White=2     	Black=5      Inaccurate:     	White=6     	Black=3      OK:         	White=11    	Black=12     Best:        	White=1     	Black=2      Strong:       	White=2     	---} 1/2-1/2

[Event "WSTCC-65 2024"]
[Site "Krakow"]
[Date "2024.07.04"]
[Round "3.20"]
[White "Andersson, Finn"]
[Black "Tsifanskaya, Ludmila A"]
[Result "1/2-1/2"]
[ECO "B32"]
[WhiteElo "1824"]
[BlackElo "1970"]
[Annotator "NA RC"]
[PlyCount "42"]
[EventDate "2024.07.01"]
[EventType "team-tourn"]
[EventCountry "POL"]
[SourceTitle "playchess.com"]
[Source "ChessBase"]
[SourceQuality "1"]
[TimeControl "40/5400+30:1800+30"]

1. e4 {[%emt 0:00:04]} c5 {[%emt 0:00:05]} 2. Nf3 {[%emt 0:01:28]} Nc6 {[%emt 0:00:08]} 3. d4 {[%emt 0:00:04]} cxd4 {[%emt 0:00:02]} 4. Nxd4 {[%emt 0:00:04]} Qb6 {[%emt 0:00:17]} 5. Nb3 {[%emt 0:00:16]} Nf6 {[%emt 0:00:10]} 6. Nc3 {[%emt 0:00:06]} e6 {[%emt 0:00:08]} 7. Qe2 {[%emt 0:00:06]} Qc7 {[%emt 0:00:39]} 8. a3 {[%emt 0:04:17]} a6 {[%emt 0:00:38]} 9. f4 {[%emt 0:02:44]} d6 {[%emt 0:00:11]} 10. Be3 {[%emt 0:05:02]} b5 {[%emt 0:00:38]} 11. g3 {[%emt 0:09:38]} Be7 {[%emt 0:07:25]} 12. Bg2 {[%emt 0:00:32]} O-O {[%emt 0:02:53]} 13. O-O {[%emt 0:08:52]} Bb7 {[%emt 0:02:04]} 14. h3 {[%emt 0:03:07]} Rac8 {[%emt 0:04:53]} 15. Rad1 {[%emt 0:03:23]} b4 {[%emt 0:01:14]} 16. axb4 {[%emt 0:00:33]} Nxb4 {[%emt 0:00:02]} 17. Rd2 {[%emt 0:03:02]} d5 {[%emt 0:04:35]} 18. exd5 {[%emt 0:12:34]} Nfxd5 {[%emt 0:06:57]} 19. Nxd5 {[%emt 0:02:19]} Nxd5 {[%emt 0:03:35]} 20. Bd4 {[%emt 0:01:00]} Rfd8 {[%emt 0:04:06]} 21. Qf2 {[%emt 0:05:32]} Ba8 1/2-1/2

[Event "WSTCC-65 2024"]
[Site "Krakow"]
[Date "2024.07.04"]
[Round "3.21"]
[White "Vilerte, Tamara"]
[Black "Shilov, Sergej"]
[Result "1/2-1/2"]
[ECO "E91"]
[WhiteElo "1971"]
[BlackElo "2143"]
[Annotator "NA RC"]
[PlyCount "53"]
[EventDate "2024.07.01"]
[EventType "team-tourn"]
[EventCountry "POL"]
[SourceTitle "playchess.com"]
[Source "ChessBase"]
[SourceQuality "1"]
[TimeControl "40/5400+30:1800+30"]

1. Nf3 {[%emt 0:00:10]} d6 {[%emt 0:00:40]} 2. d4 {[%emt 0:00:28]} g6 {[%emt 0:00:31]} 3. c4 {[%emt 0:01:01]} Bg7 {[%emt 0:00:41]} 4. Nc3 {[%emt 0:01:33]} Nf6 {[%emt 0:01:50]} 5. e4 {[%emt 0:00:54]} O-O {[%emt 0:01:00]} 6. Be2 {[%emt 0:03:40]} Nc6 {[%emt 0:05:31]} 7. d5 {[%emt 0:12:08]} Nb8 {[%emt 0:01:28]} 8. O-O {[%emt 0:00:59]} c5 {[%emt 0:03:07]} 9. h3 {[%emt 0:02:41]} e5 {[%emt 0:05:35]} 10. dxe6 {[%emt 0:11:42]} Bxe6 {[%emt 0:00:42]} 11. Bf4 {[%emt 0:01:36]} Qa5 {[%emt 0:01:02]} 12. Bxd6 {[%emt 0:04:46]} Rd8 {[%emt 0:00:29]} 13. e5 {[%emt 0:00:16]} Ne8 {[%emt 0:01:21]} 14. Qb3 {[%emt 0:04:51]} Nxd6 {[%emt 0:05:08]} 15. exd6 {[%emt 0:00:33]} Nc6 {[%emt 0:00:38]} 16. Rad1 {[%emt 0:13:23]} Rab8 {[%emt 0:05:30]} 17. Nd5 {[%emt 0:08:16]} Nd4 {[%emt 0:06:38]} 18. Nxd4 {[%emt 0:01:55]} Bxd4 {[%emt 0:00:20]} 19. Bf3 {[%emt 0:01:36]} Kg7 {[%emt 0:05:06]} 20. Rxd4 {[%emt 0:04:51]} cxd4 {[%emt 0:00:20]} 21. Qd3 {[%emt 0:00:13]} Bxd5 {[%emt 0:03:39]} 22. Qxd4+ {[%emt 0:00:09]} f6 {[%emt 0:03:40]} 23. Bxd5 {[%emt 0:01:16]} Rxd6 {[%emt 0:00:46]} 24. c5 {[%emt 0:01:04]} Rd7 {[%emt 0:00:32]} 25. b4 {[%emt 0:00:23]} Qxa2 {[%emt 0:02:03]} 26. Qf4 {[%emt 0:00:25]} Qxd5 {[%emt 0:01:08]} 27. Qxb8 {[%emt 0:00:07]} 1/2-1/2

[Event "WSTCC-65 2024"]
[Site "Krakow"]
[Date "2024.07.04"]
[Round "3.21"]
[White "McGill, Derek"]
[Black "Falk, Thomas"]
[Result "1/2-1/2"]
[ECO "A36"]
[WhiteElo "1827"]
[BlackElo "2022"]
[Annotator "NA RC"]
[PlyCount "33"]
[EventDate "2024.07.01"]
[EventType "team-tourn"]
[EventCountry "POL"]
[SourceTitle "playchess.com"]
[Source "ChessBase"]
[SourceQuality "1"]
[TimeControl "40/5400+30:1800+30"]

1. c4 {[%emt 0:00:10]} c5 {[%emt 0:00:06]} 2. Nc3 {[%emt 0:00:14]} Nc6 {[%emt 0:00:10]} 3. g3 {[%emt 0:00:43]} g6 {[%emt 0:00:06]} 4. Bg2 {[%emt 0:00:04]} Bg7 {[%emt 0:00:04]} 5. e4 {[%emt 0:02:55]} e6 {[%emt 0:01:07]} 6. Nge2 {[%emt 0:01:53]} Nge7 {[%emt 0:00:11]} 7. O-O {[%emt 0:00:11]} O-O {[%emt 0:00:08]} 8. d3 {[%emt 0:01:59]} b6 {[%emt 0:01:34]} 9. Rb1 {[%emt 0:03:54]} Bb7 {[%emt 0:01:25]} 10. a3 {[%emt 0:03:48]} Nd4 {[%emt 0:02:40]} 11. b4 {[%emt 0:07:39]} d6 {[%emt 0:04:14]} 12. Bb2 {[%emt 0:02:40]} Nxe2+ {[%emt 0:12:36]} 13. Nxe2 {[%emt 0:03:00]} Qc7 {[%emt 0:05:06]} 14. Bxg7 {[%emt 0:01:09]} Kxg7 {[%emt 0:00:11]} 15. Qd2 {[%emt 0:04:14]} Rfd8 {[%emt 0:03:36]} 16. Qb2+ {[%emt 0:19:05]} Kg8 {[%emt 0:03:00]} 17. Rfc1 {[%emt 0:00:29]} 1/2-1/2

[Event "WSTCC-65 2024"]
[Site "Krakow"]
[Date "2024.07.04"]
[Round "3.22"]
[White "Gasik, Piotr"]
[Black "Goldmane, Astra"]
[Result "1-0"]
[ECO "A29"]
[WhiteElo "1954"]
[BlackElo "1989"]
[Annotator "RC"]
[PlyCount "143"]
[EventDate "2024.07.01"]
[EventType "team-tourn"]
[EventCountry "POL"]
[SourceTitle "playchess.com"]
[Source "ChessBase"]
[SourceQuality "1"]
[TimeControl "40/5400+30:1800+30"]

1. c4 {[%emt 0:00:03]} e5 {[%emt 0:00:17]} 2. Nc3 {[%emt 0:00:06]} Nc6 {[%emt 0:00:14]} 3. Nf3 {[%emt 0:00:13]} Nf6 {[%emt 0:00:30]} 4. g3 {[%emt 0:00:06]} d5 {[%emt 0:00:21]} 5. cxd5 {[%emt 0:00:07]} Nxd5 {[%emt 0:00:09]} 6. Bg2 {[%emt 0:00:05]} Nb6 {[%emt 0:00:16]} 7. d3 {[%emt 0:08:07]} Be7 {[%emt 0:01:10]} 8. O-O {[%emt 0:00:13]} Be6 {[%emt 0:03:17]} 9. Be3 {[%emt 0:00:47]} Nd5 {[%emt 0:14:33]} 10. Nxd5 {[%emt 0:07:32]} Bxd5 {[%emt 0:00:44]} 11. Qa4 {[%emt 0:00:08]} O-O {[%emt 0:00:42]} 12. a3 {[%emt 0:03:20]} a6 {[%emt 0:10:41]} 13. Rac1 {[%emt 0:02:27]} Re8 {[%emt 0:07:48]} 14. Rfd1 {[%emt 0:02:21]} Rb8 {[%emt 0:12:48]} 15. d4 {[%emt 0:08:04]} e4 {[%emt 0:10:56]} 16. Ne5 {[%emt 0:12:49]} Bf6 {[%emt 0:06:00]} 17. Nxc6 {[%emt 0:01:26]} Bxc6 {[%emt 0:00:54]} 18. Qc2 {[%emt 0:00:57]} Bg5 {[%emt 0:15:24]} 19. Bxg5 {[%emt 0:04:40]} Qxg5 {[%emt 0:00:02]} 20. Qc5 {[%emt 0:00:25]} Qg4 {[%emt 0:05:26]} 21. e3 {[%emt 0:08:16]} Rbd8 {[%emt 0:00:53]} 22. h3 {[%emt 0:01:48]} Qe6 {[%emt 0:00:27]} 23. Rd2 {[%emt 0:03:26]} Rd5 {[%emt 0:00:24]} 24. Qb4 {[%emt 0:02:58]} Qd7 {[%emt 0:04:32]} 25. Rc5 {[%emt 0:03:02]} Rxc5 {[%emt 0:01:43]} 26. dxc5 {[%emt 0:02:13]} Qe6 {[%emt 0:00:25]} 27. Rd4 {[%emt 0:00:37]} g6 {[%emt 0:00:18]} 28. Qd2 {[%emt 0:01:12]} f5 {[%emt 0:00:29]} 29. Bf1 {[%emt 0:03:17]} Bb5 {[%emt 0:02:02]} 30. Bxb5 {[%emt 0:02:18]} axb5 {[%emt 0:00:00]} 31. Rd7 {[%emt 0:00:08]} Qe5 {[%emt 0:00:24]} 32. Qd4 {[%emt 0:01:17]} Qxd4 {[%emt 0:00:28]} 33. exd4 {[%emt 0:00:05]} Rc8 {[%emt 0:00:30]} 34. d5 {[%emt 0:00:43]} h5 {[%emt 0:00:54]} 35. h4 {[%emt 0:00:45]} Kf8 {[%emt 0:00:31]} 36. b4 {[%emt 0:04:41]} Ke8 {[%emt 0:00:33]} 37. Rg7 {[%emt 0:01:13]} Rd8 {[%emt 0:00:12]} 38. Rxc7 {[%emt 0:00:34]} Rxd5 {[%emt 0:00:03]} 39. Rxb7 {[%emt 0:00:13]} Rd1+ {[%emt 0:00:05]} 40. Kg2 {[%emt 0:00:09]} Rd2 {[%emt 0:00:01]} 41. Kf1 {[%emt 0:30:22]} Ra2 {[%emt 0:31:19]} 42. Rxb5 {[%emt 0:00:37]} Rxa3 {[%emt 0:00:02]} 43. Rb6 {[%emt 0:00:08]} Ra1+ {[%emt 0:01:19]} 44. Ke2 {[%emt 0:02:34]} Ra2+ {[%emt 0:00:03]} 45. Ke3 {[%emt 0:00:11]} Ra3+ {[%emt 0:00:28]} 46. Kd4 {[%emt 0:00:34]} Rd3+ {[%emt 0:00:00]} 47. Kc4 {[%emt 0:00:00]} Rd2 {[%emt 0:00:00]} 48. Rxg6 Rxf2 49. c6 {[%emt 0:00:00]} Kd8 {[%emt 0:00:00]} 50. Re6 {[%emt 0:00:00]} Kc7 {[%emt 0:00:00]} 51. b5 {[%emt 0:00:00]} Kb6 {[%emt 0:00:00]} 52. Re5 {[%emt 0:00:00]} Rc2+ {[%emt 0:00:00]} 53. Kd4 {[%emt 0:00:00]} Rd2+ {[%emt 0:00:00]} 54. Ke3 {[%emt 0:00:00]} Rd3+ {[%emt 0:00:00]} 55. Kf4 {[%emt 0:00:00]} Rf3+ {[%emt 0:00:00]} 56. Kg5 {[%emt 0:00:00]} Rxg3+ {[%emt 0:00:00]} 57. Kxh5 {[%emt 0:00:00]} Rf3 {[%emt 0:01:05]} 58. Kg5 {[%emt 0:00:00]} e3 {[%emt 0:00:55]} 59. h5 {[%emt 0:00:00]} f4 {[%emt 0:00:19]} 60. h6 {[%emt 0:00:00]} Rf2 {[%emt 0:01:30]} 61. h7 {[%emt 0:00:29]} Rh2 {[%emt 0:00:38]} 62. Kxf4 {[%emt 0:00:38]} e2 {[%emt 0:00:37]} 63. Rxe2 {[%emt 0:01:06]} Rxh7 {[%emt 0:00:06]} 64. Re5 {[%emt 0:00:06]} Rh4+ {[%emt 0:00:53]} 65. Kg5 {[%emt 0:00:29]} Rd4 {[%emt 0:01:13]} 66. Kf6 {[%emt 0:00:07]} Rd1 {[%emt 0:00:26]} 67. Ke6 {[%emt 0:00:05]} Rd2 {[%emt 0:00:16]} 68. Rd5 {[%emt 0:00:12]} Rh2 {[%emt 0:00:37]} 69. Kd7 {[%emt 0:00:47]} Rh7+ {[%emt 0:00:04]} 70. Kc8 {[%emt 0:03:37]} Rc7+ {[%emt 0:00:50]} 71. Kb8 {[%emt 0:00:40]} Ra7 {[%emt 0:04:01]} 72. Rd7 {[%emt 0:00:41]} 1-0

[Event "WSTCC-65 2024"]
[Site "Krakow"]
[Date "2024.07.04"]
[Round "3.22"]
[White "Lomer, Edmund"]
[Black "Lohan, Martin"]
[Result "1-0"]
[ECO "D79"]
[WhiteElo "1943"]
[BlackElo "1826"]
[Annotator "NA RC"]
[PlyCount "39"]
[EventDate "2024.07.01"]
[EventType "team-tourn"]
[EventCountry "POL"]
[SourceTitle "playchess.com"]
[Source "ChessBase"]
[SourceQuality "1"]
[TimeControl "40/5400+30:1800+30"]

1. Nf3 {[%emt 0:00:05]} g6 {[%emt 0:00:57]} 2. g3 {[%emt 0:00:14]} Bg7 {[%emt 0:00:05]} 3. d4 {[%emt 0:00:16]} d5 {[%emt 0:00:49]} 4. Bg2 {[%emt 0:00:15]} Nf6 {[%emt 0:00:19]} 5. O-O {[%emt 0:00:18]} O-O {[%emt 0:00:19]} 6. c4 {[%emt 0:00:18]} c6 {[%emt 0:00:37]} 7. cxd5 {[%emt 0:00:27]} cxd5 {[%emt 0:00:13]} 8. Nc3 {[%emt 0:00:51]} Nc6 {[%emt 0:00:31]} 9. Ne5 {[%emt 0:01:22]} e6 {[%emt 0:01:32]} 10. Nxc6 {[%emt 0:03:34]} bxc6 {[%emt 0:00:14]} 11. Na4 {[%emt 0:01:44]} Nd7 {[%emt 0:02:45]} 12. Bf4 {[%emt 0:04:36]} e5 {[%emt 0:01:56]} 13. dxe5 {[%emt 0:01:22]} Bxe5 {[%emt 0:00:35]} 14. Bxe5 {[%emt 0:00:59]} Nxe5 {[%emt 0:00:08]} 15. Rc1 {[%emt 0:00:40]} Be6 {[%emt 0:15:38]} 16. Qd4 {[%emt 0:06:04]} Qd6 {[%emt 0:15:18]} 17. Rfd1 {[%emt 0:03:50]} Rfd8 {[%emt 0:06:24]} 18. e4 {[%emt 0:03:51]} Bh3 {[%emt 0:03:27]} 19. f4 {[%emt 0:01:55]} Qe6 {[%emt 0:08:28]} 20. Qxe5 {[%emt 0:00:36]} 1-0

[Event "WSTCC-65 2024"]
[Site "Krakow"]
[Date "2024.07.04"]
[Round "3.23"]
[White "Ungure, Liga"]
[Black "Pietrzak, Janusz"]
[Result "1/2-1/2"]
[ECO "B52"]
[WhiteElo "1970"]
[BlackElo "1919"]
[Annotator "NA RC"]
[PlyCount "36"]
[EventDate "2024.07.01"]
[EventType "team-tourn"]
[EventCountry "POL"]
[SourceTitle "playchess.com"]
[Source "ChessBase"]
[SourceQuality "1"]
[TimeControl "40/5400+30:1800+30"]

1. e4 {[%emt 0:00:03]} c5 {[%emt 0:00:15]} 2. Nf3 {[%emt 0:00:09]} d6 {[%emt 0:00:07]} 3. Bb5+ {[%emt 0:00:05]} Bd7 {[%emt 0:00:10]} 4. Bxd7+ {[%emt 0:00:05]} Qxd7 {[%emt 0:00:29]} 5. c4 {[%emt 0:00:06]} Nc6 {[%emt 0:02:11]} 6. d4 {[%emt 0:00:24]} cxd4 {[%emt 0:01:09]} 7. Nxd4 {[%emt 0:00:06]} g6 {[%emt 0:00:35]} 8. Be3 {[%emt 0:02:24]} Bg7 {[%emt 0:00:18]} 9. f3 {[%emt 0:00:33]} Nf6 {[%emt 0:11:35]} 10. Nc3 {[%emt 0:00:50]} O-O {[%emt 0:00:23]} 11. O-O {[%emt 0:00:51]} Rac8 {[%emt 0:07:56]} 12. b3 {[%emt 0:00:20]} Nxd4 {[%emt 0:02:37]} 13. Bxd4 {[%emt 0:00:21]} Nh5 {[%emt 0:01:55]} 14. Bxg7 {[%emt 0:06:33]} Nxg7 {[%emt 0:00:05]} 15. Nd5 {[%emt 0:03:01]} f5 {[%emt 0:06:29]} 16. e5 {[%emt 0:06:16]} Kh8 {[%emt 0:08:36]} 17. exd6 {[%emt 0:11:39]} Qxd6 {[%emt 0:00:24]} 18. Re1 {[%emt 0:05:07]} e6 {[%emt 0:08:19]} 1/2-1/2

[Event "WSTCC-65 2024"]
[Site "Krakow"]
[Date "2024.07.04"]
[Round "3.23"]
[White "Lynch, Peter J."]
[Black "Hansch, Klaus-Michael"]
[Result "0-1"]
[ECO "B01"]
[WhiteElo "1741"]
[BlackElo "1898"]
[Annotator "NA RC"]
[PlyCount "66"]
[EventDate "2024.07.01"]
[EventType "team-tourn"]
[EventCountry "POL"]
[SourceTitle "playchess.com"]
[Source "ChessBase"]
[SourceQuality "1"]
[TimeControl "40/5400+30:1800+30"]

1. e4 {[%emt 0:00:04]} d5 {[%emt 0:00:17]} 2. exd5 {[%emt 0:00:16]} Qxd5 {[%emt 0:00:13]} 3. Nc3 Qd8 {[%emt 0:00:25]} 4. d4 {[%emt 0:01:08]} Nf6 {[%emt 0:01:50]} 5. Nf3 {[%emt 0:01:25]} c6 {[%emt 0:00:27]} 6. Be2 {[%emt 0:01:12]} Bg4 {[%emt 0:00:57]} 7. O-O {[%emt 0:00:55]} e6 {[%emt 0:00:22]} 8. a3 {[%emt 0:02:14]} Be7 {[%emt 0:00:38]} 9. Be3 {[%emt 0:00:46]} O-O {[%emt 0:00:37]} 10. Qd2 {[%emt 0:01:52]} Nbd7 {[%emt 0:00:41]} 11. Rfd1 {[%emt 0:08:34]} Nb6 {[%emt 0:03:33]} 12. h3 {[%emt 0:06:58]} Bh5 {[%emt 0:02:01]} 13. b4 {[%emt 0:07:58]} Nbd5 {[%emt 0:06:04]} 14. Nxd5 {[%emt 0:05:18]} Nxd5 {[%emt 0:00:22]} 15. c4 {[%emt 0:01:45]} Nxe3 {[%emt 0:03:18]} 16. Qxe3 {[%emt 0:02:55]} Bf6 {[%emt 0:08:41]} 17. g4 {[%emt 0:07:03]} Bg6 {[%emt 0:01:02]} 18. g5 {[%emt 0:05:47]} Be7 {[%emt 0:00:12]} 19. h4 {[%emt 0:00:57]} Bh5 {[%emt 0:04:38]} 20. Kg2 {[%emt 0:03:38]} a6 {[%emt 0:06:04]} 21. Rac1 {[%emt 0:05:40]} a5 {[%emt 0:03:26]} 22. d5 {[%emt 0:11:42]} exd5 {[%emt 0:06:15]} 23. cxd5 {[%emt 0:02:14]} cxd5 {[%emt 0:00:40]} 24. Qb3 {[%emt 0:08:54]} axb4 {[%emt 0:04:42]} 25. axb4 {[%emt 0:02:19]} Qd7 {[%emt 0:03:59]} 26. Ne5 {[%emt 0:03:56]} Qf5 {[%emt 0:00:29]} 27. Bxh5 Qxe5 {[%emt 0:01:15]} 28. Rxd5 {[%emt 0:00:57]} Qe4+ {[%emt 0:02:12]} 29. Kh3 {[%emt 0:03:13]} Bxb4 {[%emt 0:06:30]} 30. Rb5 {[%emt 0:01:44]} Ra3 {[%emt 0:01:39]} 31. Bxf7+ {[%emt 0:02:25]} Kh8 {[%emt 0:01:19]} 32. Rxb4 {[%emt 0:00:59]} Rxb3+ {[%emt 0:00:32]} 33. Rxb3 {[%emt 0:00:28]} Qf5+ 0-1